Cogmind - Beta 10.2 @@@ ROGUE MODE // 2021.02.23 @ 06:01:50 Player: Pitt Result: Destroyed by Y-54 Guardian with Gatling Laser Performance ------------- Evolutions (3) 1500 Regions Visited (8) 1600 Robots Destroyed (68) 340 Value Destroyed (1392) 1392 Prototype IDs (2) 40 Alien Tech Used (0) 0 Bonus (51) 51 TOTAL SCORE: 4923 Bonus ------- Follower Combat Kills 68 Friendly Fire -17 Cogmind --------- Core Integrity 0/700 Matter 266/300 Energy 100/100 System Corruption 0% Temperature Cool (12) Movement Core (150) Ox2 Location -7/Lower Caves Parts ------- > --- POWER (2) -------- (None) > --- PROPULSION (3) --- (None) > --- UTILITY (5) ------ Medium Storage Unit Advanced Targeting Computer Launcher Guidance Computer Makeshift Hacking Suite > --- WEAPON (3) ------- (None) > --- INVENTORY (8) ---- Tactical Coordination Suite Trap Extractor Peak State ------------ > --- POWER ------------ Light Nuclear Core > --- PROPULSION ------- Advanced Treads > --- UTILITY ---------- Improved Heat Sink Advanced Targeting Computer Tactical Coordination Suite Launcher Guidance Computer Makeshift Hacking Suite > --- WEAPON ----------- Autogun Gauss Rifle > --- INVENTORY -------- Medium Storage Unit Trap Extractor [Rating: 31] Favorites ----------- Power Light Nuclear Core Engine Ion Engine Power Core Light Nuclear Core Propulsion Aluminum Leg Treads Improved Treads Leg Aluminum Leg Hover Unit Combat Airjet Flight Unit Flight Unit Utility High-capacity Storage Unit Device Improved Terrain Scanner Storage High-capacity Storage Unit Processor Advanced Targeting Computer Hackware Makeshift Hacking Suite Protection Light Armor Plating Weapon Beam Cannon Energy Gun Medium Laser Energy Cannon Beam Cannon Ballistic Gun Autogun Ballistic Cannon Assault Cannon Launcher Rocket Launcher Special Weapon Mining Laser Special Melee Weapon Improved Datajack Build | -11 -10 -10 -9 -9 -8 -7 -7 -7 ------- Run | Scr Mat Min Mat Min Mat Fac Low Low Slots Evolved 6 | . . . 2 . 2 2 . . Power 1 | . . . . . 1 . . . Propulsion 1 | . . . 1 . . . . . Utility 3 | . . . 1 . 1 1 . . Weapon 1 | . . . . . . 1 . . Parts Attached 87 | 7 4 9 18 13 13 3 14 6 Power 10 | 1 . 2 1 2 1 . 3 . Engine 5 | 1 . . 1 2 1 . . . Core 5 | . . 2 . . . . 3 . Reactor . | . . . . . . . . . Propulsion 20 | 2 . 1 4 5 2 1 4 1 Treads 5 | . . . 4 . . . . 1 Leg 7 | 2 . 1 . 4 . . . . Wheel . | . . . . . . . . . Hover 1 | . . . . 1 . . . . Flight 7 | . . . . . 2 1 4 . Utility 26 | 2 2 3 3 3 5 1 3 4 Device 10 | 1 1 2 1 . 3 . . 2 Storage 5 | 1 1 1 . 1 . . . 1 Processor 5 | . . . . . 2 1 1 1 Hackware 1 | . . . . . . . 1 . Protection 5 | . . . 2 2 . . 1 . Artifact . | . . . . . . . . . Weapon 31 | 2 2 3 10 3 5 1 4 1 Energy Gun 5 | 1 1 . 1 . 1 . 1 . Energy Cannon 8 | . 1 2 2 . 1 1 1 . Ballistic Gun 8 | 1 . . 1 2 1 . 2 1 Ballistic Cannon 1 | . . . . . 1 . . . Launcher 6 | . . 1 4 1 . . . . Special Weapon 2 | . . . 2 . . . . . Impact Weapon . | . . . . . . . . . Slashing Weapon . | . . . . . . . . . Piercing Weapon . | . . . . . . . . . Special Melee Weapon 1 | . . . . . 1 . . . Unidentified Prototypes . | . . . . . . . . . Parts Lost 42 | . . 1 6 8 7 1 14 5 Power 7 | . . . 1 1 2 . 2 1 Propulsion 13 | . . . 2 3 1 1 5 1 Utility 9 | . . 1 1 1 2 . 3 1 Weapon 13 | . . . 2 3 2 . 4 2 Highest Loss Streak 6 | . . 1 6 6 2 1 6 5 Average Slot Usage (%) 75 | . 96 96 89 80 43 36 45 50 Engine 5 | . 14 10 1 9 3 . . . Core 3 | . . 3 7 . . . 4 6 Treads 5 | . . . 27 . . . . 1 Leg 12 | . 28 28 1 27 . . . . Flight 1 | . . . . . 2 12 11 . Device 9 | . 14 13 10 . 8 . . 9 Storage 8 | . 14 14 11 18 . . . 1 Processor 4 | . . . . . 14 15 17 8 Hackware 1 | . . . . . . . 2 7 Protection 1 | . . . 6 8 . . . . Energy Gun 5 | . 15 8 5 . . . 1 . Energy Cannon 5 | . 4 16 10 . . . . . Ballistic Gun 5 | . 5 . 1 11 1 7 4 13 Naked Turns 18 | . . . . 18 . . . . Heaviest Build 60 | 14 43 45 51 60 13 1 21 21 Greatest Support 66 | 20 20 20 66 45 22 8 15 22 Greatest Overweight (x) 5 | . 2 2 2 1 1 . 2 5 Average Overweight (x) . | . . 1 . . . . . 2 Largest Inventory Capacity 12 | 6 12 12 12 12 4 4 4 8 Average Capacity 8 | 5 8 12 12 11 4 4 4 4 Most Carried 12 | 4 10 12 12 12 4 4 4 2 Average Carried 6 | 2 6 10 11 10 3 3 2 1 Final Capacity 12 | 6 12 12 12 4 4 4 4 8 Final Carried 12 | 4 10 12 11 4 4 4 1 2 Class Distribution -------------------- 78% | Mutant 21% | Scavenger-Mutant Dominant Class ---------------- Mutant | -10/Materials Mutant | -10/Mines Mutant | -9/Materials Mutant | -9/Mines Mutant | -8/Materials Scavenger-Mutant | -7/Factory Mutant | -7/Lower Caves Scavenger-Mutant | -7/Lower Caves Resources | -11 -10 -10 -9 -9 -8 -7 -7 -7 ----------- Run | Scr Mat Min Mat Min Mat Fac Low Low Matter Collected 1445 | 279 58 96 152 218 70 22 329 221 Remotely 58 | . 58 . . . . . . . Salvage Created 1977 | 75 134 205 514 241 161 22 238 387 Parts 143 | 9 14 6 49 27 12 1 17 8 Haulers Intercepted . | . . . . . . . . . Recyclers Shooed 2 | 1 . . 1 . . . . . Parts Field Recycled . | . . . . . . . . . Retrieved Matter . | . . . . . . . . . Parts Self-Destructed 10 | . . . . . . . 9 1 Prevented 2 | . . . . . . . 2 . Kills | -11 -10 -10 -9 -9 -8 -7 -7 -7 ------- Run | Scr Mat Min Mat Min Mat Fac Low Low Combat Hostiles Destroyed 50 | . 6 6 16 8 6 . 8 . Melee 1 | . . . . . . . 1 . Guns 21 | . 6 . 3 4 3 . 5 . Cannons 9 | . . 2 4 . 3 . . . AOE 18 | . . 3 9 4 . . 2 . Classes Destroyed 11 | 2 2 1 5 . . . . 1 Worker 3 | . . . 2 1 . . . . Builder 3 | . . . 3 . . . . . Tunneler 4 | 1 . 1 . 2 . . . . Recycler 3 | 1 . 1 1 . . . . . Mechanic 2 | . . . 1 . . 1 . . Watcher 3 | . 2 . 1 . . . . . Swarmer 31 | . 6 4 7 4 3 . 7 . Grunt 10 | . . 2 5 1 2 . . . Brawler 2 | . . . 1 1 . . . . Sentry 7 | . . . 3 2 1 . 1 . Packrat 1 | . . . . . . . . 1 Samaritan 2 | . . . . . . . . 2 Best Kill Streak 8 | 2 4 3 8 5 3 1 4 . Combat Bots Only 5 | . 3 3 5 4 3 . 4 . Max Kills in Single Turn 4 | 1 1 3 4 3 1 1 2 1 Gunslinging . | . . . . . . . . . Exploded 3 | . . 3 2 2 . . 2 . Melee 1 | . . . . . . . 1 . Uniques/NPCs Destroyed . | . . . . . . . . . Combat | -11 -10 -10 -9 -9 -8 -7 -7 -7 -------- Run | Scr Mat Min Mat Min Mat Fac Low Low Damage Taken 5258 | . 177 127 965 1114 919 49 1352 555 Core 1533 | . 21 48 84 223 448 19 473 217 Absorbed by Shields . | . . . . . . . . . Core Remaining (%) 53 | 100 . 72 . 23 18 . . . Volleys Fired 233 | 3 33 15 59 27 33 4 24 35 Largest 2 | 2 2 2 2 1 1 1 2 2 Hottest 125 | 70 106 120 125 33 60 20 88 51 Shots Fired 281 | 6 52 24 68 27 33 4 27 40 Gun 193 | 6 45 13 26 24 12 4 23 40 Cannon 63 | . 7 10 21 . 21 . 4 . Launcher 21 | . . 1 17 3 . . . . Special 4 | . . . 4 . . . . . Kinetic 122 | 3 6 . 9 24 22 4 14 40 Thermal 130 | 3 46 23 42 . 3 . 13 . Explosive 21 | . . 1 17 3 . . . . Electromagnetic 8 | . . . . . 8 . . . Robot Hit Streak 14 | 4 5 6 12 14 8 5 12 13 Robot Miss Streak 6 | . 4 2 6 2 3 1 2 3 Penetration Max . | . . . . . . . . . Secondary Targets 1 | . 1 . . . . . . . Max Gunslinging Chain 1 | . 1 . . . . . . . Shots Hit Robots 183 | 4 25 18 37 18 25 3 20 33 Core Hits 112 | 3 8 12 32 15 10 2 15 15 Critical Hits 1 | . . . . 1 . . . . Critical Kills 1 | . . . . 1 . . . . Critical Parts Destroyed . | . . . . . . . . . Melee Attacks . | . . . . . . . . . Impact . | . . . . . . . . . Slashing . | . . . . . . . . . Piercing . | . . . . . . . . . Sneak Attacks . | . . . . . . . . . Combat Hostiles . | . . . . . . . . . Follow-up Attacks . | . . . . . . . . . Damage Inflicted 4531 | 50 305 378 1646 529 462 28 364 769 Guns 2129 | 50 235 148 259 267 65 28 316 761 Cannons 872 | . 70 123 244 . 391 . 44 . Explosions 1509 | . . 107 1143 259 . . . . Melee . | . . . . . . . . . Ramming 21 | . . . . 3 6 . 4 8 Kinetic 1794 | 14 42 . 134 267 359 28 189 761 Thermal 1164 | 36 263 271 369 . 54 . 171 . Explosive 1509 | . . 107 1143 259 . . . . Electromagnetic 43 | . . . . . 43 . . . Impact . | . . . . . . . . . Slashing . | . . . . . . . . . Piercing . | . . . . . . . . . Highest Corruption 3 | . . . . 3 . . . . Average Corruption 3 | . . . . 3 . . . . Corruption Purged . | . . . . . . . . . Effects 1 | . . . . 1 . . . . Energy Discharges 1 | . . . . 1 . . . . Overload Shots . | . . . . . . . . . Overflow Damage 75 | . 15 . 47 10 3 . . . Projectiles 18 | . 15 . . . 3 . . . Explosions 57 | . . . 47 10 . . . . Melee . | . . . . . . . . . Knockbacks 2 | . . . . . 2 . . . Impact . | . . . . . . . . . Kinetic 2 | . . . . . 2 . . . Secondary . | . . . . . . . . . Self-Inflicted Damage 167 | . . . 48 115 2 . 2 . Shots 5 | . . . 2 3 . . . . Rammed 13 | . . . . . 4 . 1 8 Targets Rammed 14 | . . . . 1 4 . 1 8 Kicked 1 | . . . . 1 . . . . Crushed . | . . . . . . . . . Highest Temperature 621 | 38 450 384 621 12 31 . 175 . Average Temperature 138 | 16 112 210 178 5 10 . 78 . Received Heat Transfer 1050 | . . 69 258 93 396 18 42 174 Effects 19 | . 1 5 13 . . . . . Shutdowns 1 | . . . 1 . . . . . Energy Bleed 8 | . 1 2 5 . . . . . Interference 2 | . . 2 . . . . . . Short Circuit 3 | . . 1 2 . . . . . Damage (minor) 1 | . . . 1 . . . . . Damage (major) 4 | . . . 4 . . . . . Siege Activations . | . . . . . . . . . Robots Corrupted . | . . . . . . . . . Combat Hostiles . | . . . . . . . . . Parts Fried . | . . . . . . . . . Impact Corruptions . | . . . . . . . . . Robots Melted 1 | . . 1 . . . . . . Combat Hostiles 1 | . . 1 . . . . . . Parts Melted 2 | . . 1 . . . . 1 . Heat Transferred 2812 | 111 703 703 814 . 111 . 370 . Parts Sabotaged . | . . . . . . . . . Parts Stolen . | . . . . . . . . . Parts Stripped . | . . . . . . . . . Power Chain Reactions . | . . . . . . . . . Missiles Intercepted . | . . . . . . . . . Alert | -11 -10 -10 -9 -9 -8 -7 -7 -7 ------- Run | Scr Mat Min Mat Min Mat Fac Low Low Peak Influence 386 | 10 151 171 386 286 375 190 . . Initial 170 | . 6 . 43 91 91 170 . . Average 114 | 3 41 41 193 194 199 178 . . Maximum Alert Level 1 | . . . 1 1 1 . . . Low Security (%) 81 | 100 100 100 52 71 66 100 . . Level 1 18 | . . . 47 28 33 . . . Level 2 . | . . . . . . . . . Level 3 . | . . . . . . . . . Level 4 . | . . . . . . . . . Level 5 . | . . . . . . . . . High Security . | . . . . . . . . . Max Security . | . . . . . . . . . Squads Dispatched 6 | . . . 1 . 4 1 . . Investigation 4 | . . . 1 . 2 1 . . Extermination . | . . . . . . . . . Reinforcement 2 | . . . . . 2 . . . Assault . | . . . . . . . . . Garrison . | . . . . . . . . . Intercept . | . . . . . . . . . Construction Impeded . | . . . . . . . . . Haulers Reinforced . | . . . . . . . . . Stealth | -11 -10 -10 -9 -9 -8 -7 -7 -7 --------- Run | Scr Mat Min Mat Min Mat Fac Low Low Distress Signals 9 | . 2 . 1 1 5 . . . Communications Jammed . | . . . . . . . . . Distress Signals . | . . . . . . . . . Times Spotted 108 | . 15 9 24 19 26 2 11 2 Peak Tracking Total 12 | . 5 3 5 10 12 1 4 3 Tactical Retreats 10 | . . 1 1 1 4 . 2 1 Traps | -11 -10 -10 -9 -9 -8 -7 -7 -7 ------- Run | Scr Mat Min Mat Min Mat Fac Low Low Traps Triggered . | . . . . . . . . . Indirectly . | . . . . . . . . . Trap Hack Attempts . | . . . . . . . . . Triggered . | . . . . . . . . . Disarmed 4 | . 4 . . . . . . . Reprogrammed . | . . . . . . . . . Reused 1 | . . . . . . . 1 . Traps Extracted . | . . . . . . . . . Installed 1 | . . . . . . . 1 . Triggered 1 | . . . . . . . 1 . Machines | -11 -10 -10 -9 -9 -8 -7 -7 -7 ---------- Run | Scr Mat Min Mat Min Mat Fac Low Low Machines Disabled 5 | . 1 2 2 . . . . . Max in Single Turn 2 | . 1 2 1 . . . . . Garrison Access 1 | . . . . . 1 . . . Machines Sabotaged . | . . . . . . . . . Garrisons Compromised . | . . . . . . . . . Overloaded Fab Kills . | . . . . . . . . . Fab Network Shutdowns . | . . . . . . . . . Hacking | -11 -10 -10 -9 -9 -8 -7 -7 -7 --------- Run | Scr Mat Min Mat Min Mat Fac Low Low Machines Accessed 18 | . 6 . 6 . 5 1 . . Terminals 12 | . 5 . 4 . 3 . . . Fabricators . | . . . . . . . . . Repair Stations 2 | . . . 1 . . 1 . . Recycling Units 2 | . 1 . . . 1 . . . Scanalyzers 1 | . . . 1 . . . . . Garrison Access 1 | . . . . . 1 . . . Total Hacks 58 | . 19 . 18 . 18 3 . . Successful 33 | . 12 . 12 . 7 2 . . Failed 25 | . 7 . 6 . 11 1 . . Catastrophic 6 | . 1 . 1 . 4 . . . Database Lockouts . | . . . . . . . . . Manual 35 | . 12 . 11 . 12 . . . Terminals 43 | . 17 . 14 . 12 . . . Fabricators . | . . . . . . . . . Repair Stations 5 | . . . 2 . . 3 . . Recycling Units 7 | . 2 . . . 5 . . . Scanalyzers 2 | . . . 2 . . . . . Garrison Access 1 | . . . . . 1 . . . Terminal Hacks 12 | . 5 . 4 . 3 . . . Part Schematic 1 | . 1 . . . . . . . Robot Analysis 1 | . . . . . 1 . . . Prototype ID Bank 1 | . . . 1 . . . . . Branch Access Points 1 | . . . . . 1 . . . Terminal Index 1 | . . . 1 . . . . . Repair Station Index 1 | . . . 1 . . . . . Locate Traps 3 | . 2 . . . 1 . . . Disarm Traps 1 | . 1 . . . . . . . Zone Layout 2 | . 1 . 1 . . . . . Fabricator Hacks . | . . . . . . . . . Repair Station Hacks 4 | . . . 2 . . 2 . . Scan Component 2 | . . . 1 . . 1 . . Repair 2 | . . . 1 . . 1 . . Recycling Unit Hacks 4 | . 2 . . . 2 . . . Report Inventory 2 | . 1 . . . 1 . . . Retrieve Components 2 | . 1 . . . 1 . . . Scanalyzer 2 | . . . 2 . . . . . Insert Component 1 | . . . 1 . . . . . Analyze 1 | . . . 1 . . . . . Garrison Access Hacks 1 | . . . . . 1 . . . Seal Access 1 | . . . . . 1 . . . Unauthorized Hacks 10 | . 5 . 4 . 1 . . . Terminals 9 | . 5 . 4 . . . . . Track 2 | . 1 . 1 . . . . . Botnet 7 | . 4 . 3 . . . . . Fabricators . | . . . . . . . . . Repair Stations . | . . . . . . . . . Recycling Units 1 | . . . . . 1 . . . Mask 1 | . . . . . 1 . . . Scanalyzers . | . . . . . . . . . Garrison Access . | . . . . . . . . . Data Cores Recovered . | . . . . . . . . . Used . | . . . . . . . . . Hacking Detections 16 | . 5 . 6 . 4 1 . . Full Trace Events 6 | . 1 . 1 . 3 1 . . Feedback Events . | . . . . . . . . . Feedback Blocked . | . . . . . . . . . Robot Schematics Acquired . | . . . . . . . . . Robots Built . | . . . . . . . . . Matter . | . . . . . . . . . Time . | . . . . . . . . . Total Robot Build Rating . | . . . . . . . . . Part Schematics Acquired 2 | . 1 . 1 . . . . . Parts Built . | . . . . . . . . . Matter . | . . . . . . . . . Time . | . . . . . . . . . Total Part Build Rating . | . . . . . . . . . Parts Repaired 2 | . . . 1 . . 1 . . Time 58 | . . . 32 . . 26 . . Parts Recycled . | . . . . . . . . . Recycled Matter . | . . . . . . . . . Retrieved Matter . | . . . . . . . . . Retrieved Components 6 | . 3 . . . 3 . . . Parts Scanalyzed 1 | . . . 1 . . . . . Part Schematics Acquired 1 | . . . 1 . . . . . Parts Damaged . | . . . . . . . . . Bothacking | -11 -10 -10 -9 -9 -8 -7 -7 -7 ------------ Run | Scr Mat Min Mat Min Mat Fac Low Low Used RIF Installer . | . . . . . . . . . Robots Hacked . | . . . . . . . . . Non-combat . | . . . . . . . . . Combat . | . . . . . . . . . Robot Hacks Applied . | . . . . . . . . . Relay Couplers Released . | . . . . . . . . . Robots Rewired . | . . . . . . . . . Allies Hacked . | . . . . . . . . . Hacks Repelled . | . . . . . . . . . Allies | -11 -10 -10 -9 -9 -8 -7 -7 -7 -------- Run | Scr Mat Min Mat Min Mat Fac Low Low Total Allies 4 | . . 4 . . . . . . Largest Group 3 | . . 3 1 . . . . . Highest-Rated Group 47 | . . 47 31 . . . . . Highest-Rated Ally 31 | . . 31 31 . . . . . Total Orders . | . . . . . . . . . Ally Attacks 20 | . . 14 6 . . . . . Total Damage 232 | . . 129 103 . . . . . Kills 6 | . . 5 1 . . . . . Allies Corrupted . | . . . . . . . . . Allies Melted . | . . . . . . . . . Intel | -11 -10 -10 -9 -9 -8 -7 -7 -7 ------- Run | Scr Mat Min Mat Min Mat Fac Low Low Robot Analysis Total 1 | . . . . . 1 . . . Derelict Logs Recovered 3 | . . 1 . 1 . . 1 . Drone Launches . | . . . . . . . . . Drone Recoveries . | . . . . . . . . . Exploration | -11 -10 -10 -9 -9 -8 -7 -7 -7 ------------- Run | Scr Mat Min Mat Min Mat Fac Low Low Turns Passed 4470 | 117 874 658 820 342 318 83 421 837 Spaces Moved 2443 | 72 364 289 304 200 360 76 448 330 Core 479 | 4 . . . 34 136 . 60 245 Treads 386 | . . . 297 4 . . . 85 Legs 882 | 68 364 289 7 154 . . . . Wheels . | . . . . . . . . . Hover 158 | . . . . 8 150 . . . Flight 538 | . . . . . 74 76 388 . Fastest Speed 34 | 50 120 150 160 50 37 37 34 145 Average Speed 126 | 116 147 171 163 126 60 37 59 214 Slowest Speed 300 | 120 180 180 180 180 100 40 220 300 Overloaded Moves . | . . . . . . . . . Propulsion Burnouts . | . . . . . . . . . Robots Hopped 6 | . . . . . 2 . 4 . Cave-ins Triggered . | . . . . . . . . . Exploration Rate (%) 38 | 4 51 54 33 53 42 3 60 46 Regions Visited 8 Branch Regions 4 Pre-discovered Areas 1 | . . 1 . . . . . . Known Exits Taken 1 | . . . . 1 . . . . Unknown Exits Taken 7 | 1 1 1 1 . 1 1 1 . Scrap Searched 3 | . . . . . . . 2 1 Spaces Dug 11 | . . . 11 . . . . . Terrain Destroyed 170 | . . 6 127 34 3 . . . Melee . | . . . . . . . . . Projectile 7 | . . . 4 . 3 . . . AOE 163 | . . 6 123 34 . . . . Terrain Rammed . | . . . . . . . . . Walls Destroyed . | . . . . . . . . . Machines Disabled . | . . . . . . . . . Actions | -11 -10 -10 -9 -9 -8 -7 -7 -7 --------- Run | Scr Mat Min Mat Min Mat Fac Low Low Total 3514 | 96 648 426 549 262 422 126 573 412 Wait 674 | 10 239 109 147 5 7 43 82 32 Move 2423 | 71 363 288 303 199 355 75 439 330 Hop 6 | . . . . . 2 . 4 . Pick Up 36 | 5 5 2 10 7 2 . 4 1 Fast Attach 52 | 6 2 2 6 6 12 2 11 5 Attach 13 | 1 . 1 1 5 1 1 3 . Detach 8 | . 1 1 . 3 1 1 1 . Swap 22 | . 2 6 11 2 . . . 1 Drop 32 | . 3 2 12 7 5 . 3 . Fire 233 | 3 33 15 59 27 33 4 24 35 Melee . | . . . . . . . . . Ram 6 | . . . . . 4 . 1 1 Kick 1 | . . . . 1 . . . . Crush 7 | . . . . . . . . 7 Escape Stasis . | . . . . . . . . . Rewire . | . . . . . . . . . Trap 1 | . . . . . . . 1 . Miscellaneous . | . . . . . . . . . Route ------- -11/Scrapyard -10/Materials (discovered 3 exits: *Mat / [*Min x2]) -10/Mines -9/Materials (discovered 2 exits: [*Min x2]) -9/Mines -8/Materials -7/Factory -7/Lower Caves -7/Lower Caves (discovered 1 exit: [*Fac]) History --------- Turn | Location | Event 35 | -11/Scrapyard | Discovered new exit (range 14) 118 | -11/Scrapyard | Entered Materials 309 | -10/Materials | Build established: Mutant 608 | -10/Materials | Discovered new exit (range 10) 840 | -10/Materials | Discovered new exit (range 12) 840 | -10/Materials | Discovered new exit (range 16) 992 | -10/Materials | Entered Mines 1036 | -10/Mines | Learned Materials stockpile data 1118 | -10/Mines | Received a Rocket Launcher from a helpful Derelict 1230 | -10/Mines | Learned location of Storage (-7) 1320 | -10/Mines | Assisted by bots powering up and referring to "LRC-V3" 1464 | -10/Mines | Escorted by a lone wolf Derelict 1611 | -10/Mines | Discovered new exit (range 15) 1650 | -10/Mines | Entered Materials 1650 | -9/Materials | Accompanied by 1 ally 1650 | -9/Materials | Evolved 2 slots: Propulsion x1, Utility x1 2044 | -9/Materials | Discovered new exit (range 17) 2305 | -9/Materials | Repaired Imp. Terrain Scanner 2375 | -9/Materials | Discovered new exit (range 11) 2411 | -9/Materials | Lost 6 parts (1p2n1u2w) 2470 | -9/Materials | Entered Mines 2483 | -9/Mines | Met a Derelict bent on vengeance 2701 | -9/Mines | Assembled infested the area 2784 | -9/Mines | Core integrity fell below 50% 2789 | -9/Mines | Identified exit to Materials 2812 | -9/Mines | Entered Materials 2812 | -8/Materials | Evolved 2 slots: Power x1, Utility x1 2817 | -8/Materials | Lost 6 parts (1p2n1u2w) 3060 | -8/Materials | Core integrity fell below 50% 3103 | -8/Materials | Core integrity fell below 20% 3126 | -8/Materials | Discovered new exit (range 9) 3130 | -8/Materials | Entered Factory 3130 | -7/Factory | Evolved 2 slots: Utility x1, Weapon x1 3176 | -7/Factory | Repaired Flight Unit 3186 | -7/Factory | Discovered new exit (range 16) 3213 | -7/Factory | Entered Lower Caves 3424 | -7/Lower Caves | Lost 4 parts (1n1u2w) 3440 | -7/Lower Caves | Core integrity fell below 50% 3513 | -7/Lower Caves | Attracted the attention of an 0b10 checkpoint 3545 | -7/Lower Caves | Learned location of 1 exit from Proximity Caves 3592 | -7/Lower Caves | Discovered new exit (range 10) 3593 | -7/Lower Caves | Lost 6 parts (2p2n1u1w) 3634 | -7/Lower Caves | Entered another Lower Caves area 3682 | -7/Lower Caves | Encountered a Warlord checkpoint 3682 | -7/Lower Caves | Discovered new exit (range 10) 4129 | -7/Lower Caves | Build established: Scavenger-Mutant 4413 | -7/Lower Caves | Attracted the attention of an 0b10 checkpoint 4452 | -7/Lower Caves | Core integrity fell below 20% 4471 | -7/Lower Caves | Destroyed by Y-54 Guardian with Gatling Laser Last Messages --------------- 04285_ Searching scrap... 04285_ Found Launcher Guidance Computer. 04285_ Found Adv. Treads. 04285_ Found 20 Matter. 04286_ Acquired 20 matter. 04291_ Acquired Adv. Treads. 04294_ Acquired Launcher Guidance Computer. 04413_ Y-54 Guardian: "INTERCEPTING UNREGISTERED DERELICT." 04413_ Slug penetrates Y-54 Guardian. 04445_ Lgt. Nuclear Core destroyed. 04455_ Autogun destroyed. 04456_ Destroyed Lgt. Nuclear Core. 04458_ Slug penetrates Y-54 Guardian. 04459_ Gauss Rifle destroyed. 04460_ Slammed into Y-54 Guardian. 04464_ Imp. Heat Sink destroyed. 04466_ Slammed into Y-54 Guardian. 04469_ Adv. Treads destroyed. 04470_ Slammed into Y-54 Guardian. 04470_ Destabilizing: Core damaged (-28). Map ----- +----------------------------------------------------+ | ?????????????????????????????????????????????????? | | ?????????????????????????????????????????????????? | | ?????????????????????????????????????????????????? | | ?????????????????????????????????????????????????? | | ?????????????????????????????????????????????????? | | ?????????????????????????????????????????????????? | | ?????????????????????????????????????????????????? | | ?????????????????????????????????????????????????? | | ???????????????#####?????????????????????????????? | | ????????????##? #????????????????????????????? | | ????????????? ## ????????????????????????????? | | ?????????????" #???????????????? #????????? | | ?????????????? ???????????????? #????????? | | ??????????????? ??????????????? #####????? | | ???????????????# #??????????????? ?????? | | ????????????????# #???####???###??# ??????? | | ????????????????# ##??# ##? #### #??????? | | ????????????????# #??# ## # ##?????? | | ?????????????????# #### ## #??#### | | ??????????????????# ## ### ???# | | ???????????????????# #?# ????# | | ???????????????????## g #?????# #???### | | ????????????????????# #####?# ##?## | | ??????????????????### ### ### " | | ??????????????????# Y | | ??????????????????# @ | | ??????????????????# ##### | | ??????????????????## ###### ###### | | ???????????????????# #????#####?# ## | | ?????????????????? ??????????# ####### | | ????????????????? ??????????## ##?????# | | ???????????????? ???????????######??????# | | ?????????????? ???????????????????????# | | ?????????????? ???????????????????????# | | ????????????? #???????????????????????#### | | ???????????? ???????????????????????????? | | ????????????## ???????????????????????????# | | ?????????????? # ??????????????????????????## | | ????????????????? ??????????????????????????# | | ??????????????????? ??????????????????????????# | | ????????????????????????????????????????????????## | | ?????????????????????????????????????????????????# | | ?????????????????????????????????????????????????? | | ?????????????????????????????????????????????????? | | ?????????????????????????????????????????????????? | | ?????????????????????????????????????????????????? | | ?????????????????????????????????????????????????? | | ?????????????????????????????????????????????????? | | ?????????????????????????????????????????????????? | | ?????????????????????????????????????????????????? | +----------------------------------------------------+ Best States ------------- Heat Dissipation 48 Energy Generation 23 Energy Capacity 665 Matter Stores 300 Matter Capacity 300 Sight Range 16 Robot Scan Range 16 Terrain Scan Range 20 Terrain Scan Density 60 Armor Coverage 600 Thermal Conversion 30 Evasion (%) 62 Targeting Accuracy 22 Launcher Accuracy 20 Recoil Reduction 3 Offensive Hacking 11 Item Schematics ----------------- Hcp. Storage Unit | -10/Materials | Hacked Trap Extractor | -9/Materials | Scanalyzed Robot Schematics ------------------ None Fabricated ------------ Nothing Alien Tech Used ----------------- None Achievements -------------- None Challenges ------------ None Game ------ Seed ExperimentalHardlightBlaster Manual? 0 Play Time 00:52:34 Cumulative 85.3 hours Start 2021.02.23 @ 05:08:55 End 2021.02.23 @ 06:01:50 Sessions 1 Manual Loads 0 Difficulty Rogue Special Mode None Game No. 143 Rogue 143 Adventurer 0 Explorer 0 Win Type - Total 0 Types 0/0/0/0/0/0/0/0/0 Lore% 45 Gallery% 50 Achievement% 33 Wizard Run 0 Options --------- ASCII 0 Keyboard 0 Movement Mouse Keybinds 0 Fullscreen 1 Font 12/Smallcaps Map View 83x54 Tactical HUD 1 Map Filters NONE Filters NONE Steam 1 RUN: 97fc9600-63d3-44d6-9f66-3faeffdde42d